bitfinex/quotes_ETHUSD_20220120
["timestamp","ask_amount","ask_price","bid_price","bid_amount"]
[1642716095664,0.00735261,3074.7,3074.6,0.01202475]
[1642716095863,0.00073454,3075.0,3074.6,0.01202475]
[1642716096061,6.00073454,3076.1,3074.6,0.39302475]
[1642716096305,6.00073454,3076.1,3074.7,41.793147]
[1642716096510,6.00073454,3076.1,3075.4,8.14e-05]
[1642716096511,1.53312285,3075.8,3075.4,8.14e-05]
[1642716096710,1.53312285,3075.8,3074.7,17.940279]
[1642716096711,6.1,3075.7,3074.7,17.940279]
[1642716097012,1.34087519,3073.2,3072.7,2.381]
[1642716097209,1.34087519,3073.2,3072.9,1.60999]
[1642716097510,0.01266329,3074.2,3073.0,90.70001376]
[1642716097718,0.27639994,3074.1,3073.0,95.25]
[1642716097913,6.15,3073.4,3072.9,1.60999]
[1642716098112,0.0124063,3073.0,3072.9,1.60999]
[1642716098511,0.3,3073.1,3072.9,100.00003684]
[1642716098711,2.4826116,3073.0,3072.9,3.684e-05]
[1642716098911,0.01204127,3073.0,3072.9,3.684e-05]
[1642716099111,6.15,3072.9,3070.4,0.01252526]
[1642716099317,0.11149693,3072.8,3070.6,0.01307374]
[1642716099516,0.00113685,3073.3,3071.2,0.0122146]
[1642716099714,0.00170527,3073.2,3071.9,0.01204017]
[1642716099914,5.27e-06,3073.2,3072.0,0.41708877]
[1642716100164,0.03,3074.6,3072.6,0.01256851]
[1642716100376,0.03,3074.6,3072.0,0.38781581]
[1642716100377,0.03,3074.6,3072.9,0.03004066]
[1642716100567,0.0073895,3074.5,3073.0,0.381]
[1642716100768,0.0073895,3074.5,3073.1,0.381]
[1642716100970,0.03,3074.6,3073.1,100.0]
[1642716100971,1.12038266,3074.4,3073.1,100.0]
[1642716101168,1.40091725,3073.8,3073.1,100.0]
[1642716101373,1.13541631,3074.6,3073.1,100.0]
[1642716101374,1.28417827,3073.3,3073.1,100.0]
[1642716101772,1.28417827,3073.3,3073.1,72.8829]
[1642716101973,1.28417827,3073.3,3071.2,2.0]
[1642716101974,13.25648103,3073.0,3071.2,3.61088]
[1642716102172,3.46591199,3072.9,3071.2,3.61088]
[1642716102374,0.01252557,3072.1,3070.0,0.03]
[1642716102574,6.15,3072.7,3070.0,0.03]
[1642716102575,0.01214167,3070.6,3070.0,0.03]
[1642716102773,0.01238871,3071.2,3070.4,0.00511581]
[1642716102774,0.05704386,3071.1,3070.4,0.00511581]
[1642716102974,7.763,3072.5,3070.4,0.00511581]
[1642716102975,0.01226894,3070.5,3070.4,0.00511581]
[1642716103174,1.24906392,3070.9,3070.4,0.00511581]
[1642716103374,6.15,3070.7,3068.2,5.8028]
[1642716103572,0.09920069,3070.5,3068.2,3.8028]
[1642716103812,0.381,3070.4,3068.6,1.62248162]
[1642716104018,4.95,3068.7,3068.6,1.62248162]
[1642716104318,3.10729702,3070.3,3068.6,1.61225]
[1642716104319,0.01288632,3069.0,3068.6,1.61225]
[1642716104619,0.381,3069.3,3068.7,1.2830632]
[1642716104620,0.11290715,3069.2,3068.7,1.2830632]
[1642716104817,0.3,3069.3,3068.7,1.2830632]
[1642716105015,0.3,3069.3,3068.8,0.00909478]
[1642716105016,0.89199767,3069.2,3068.8,0.00909478]
[1642716105218,2.34689374,3069.2,3068.8,2.88384478]
[1642716105418,2.34689374,3069.2,3068.9,86.12515522]
[1642716105419,2.64689374,3069.2,3068.9,86.12515522]
[1642716105631,6.31325,3069.0,3068.9,49.97535408]
[1642716105822,6.31325,3069.0,3067.7,0.03]
[1642716105823,7.79086497,3068.9,3067.7,0.03]
[1642716106023,0.01249422,3067.8,3063.9,3.8502]
[1642716106222,0.01224839,3067.2,3064.4,3.7482]
[1642716106422,0.85132556,3066.8,3065.7,100.0]
[1642716106624,0.85132556,3066.8,3063.5,3.22899197]
[1642716106625,0.12762948,3066.2,3063.5,3.22899197]
[1642716106824,0.12762948,3066.2,3065.8,2.113e-05]
[1642716106825,0.16325,3066.1,3065.8,2.113e-05]
[1642716107024,0.381,3066.0,3065.8,2.113e-05]
[1642716107224,0.381,3066.0,3063.6,0.01252645]
[1642716107225,0.38211572,3066.0,3063.6,0.01252645]
[1642716107421,0.38211572,3066.0,3063.5,3.21681247]
[1642716107422,2.788e-05,3065.3,3063.7,0.01195802]
[1642716107661,0.00111572,3066.0,3063.7,0.01195802]
[1642716107662,1.572e-05,3066.0,3065.8,0.00237811]
[1642716107864,0.25,3066.3,3065.9,6.1]
[1642716108170,1.054e-05,3066.6,3065.9,6.1]
[1642716108364,1.054e-05,3066.6,3066.1,0.03608877]
[1642716108563,0.2254,3067.9,3066.1,1.44394579]
[1642716108764,5.737e-05,3068.4,3066.3,0.03608877]
[1642716108968,1.0,3070.0,3067.8,0.01218991]
[1642716109171,1.62935,3071.4,3068.8,0.01271917]
[1642716109172,3.5,3071.4,3068.8,0.01271917]
[1642716109368,3.5,3071.4,3068.9,0.01238137]
[1642716109369,6.32e-05,3069.9,3068.9,0.01238137]
[1642716109568,6.32e-05,3069.9,3068.6,0.01292712]
[1642716109771,0.27639994,3071.3,3069.0,20.6390326]
[1642716109772,0.28442107,3071.3,3069.0,20.6390326]
[1642716109971,2.107e-05,3071.3,3069.1,3.36113579]
[1642716110169,0.03,3072.2,3069.1,59.2912712]
[1642716110170,8.723e-05,3070.7,3069.1,59.2912712]
[1642716110368,0.00745271,3071.2,3069.1,59.2912712]
[1642716110369,0.00745271,3071.2,3069.5,0.01262578]
[1642716110674,5.271e-05,3071.2,3069.6,101.67565233]
[1642716110871,5.271e-05,3071.2,3069.6,101.63956356]
[1642716111069,5.271e-05,3071.2,3070.0,0.01247624]
[1642716111337,13.25648103,3073.0,3070.8,0.01286194]
[1642716111541,13.25648103,3073.0,3071.1,0.01295148]
[1642716111736,13.25648103,3073.0,3071.2,1.81393817]
[1642716111737,0.00166314,3072.9,3071.2,1.81393817]
[1642716111936,0.00166314,3072.9,3071.2,1.82193823]
[1642716112236,9.471e-05,3072.8,3071.3,0.00743164]
[1642716112433,9.471e-05,3072.8,3071.3,0.00903164]
[1642716112638,9.471e-05,3072.8,3071.5,0.03608877]
[1642716112832,9.471e-05,3072.8,3071.6,0.381]
[1642716113039,0.0125445,3074.0,3072.2,0.0195044]
[1642716113040,4.45e-05,3074.0,3072.2,0.0195044]
[1642716113243,0.03,3074.6,3072.3,6.531]
[1642716113244,4.45e-05,3074.6,3072.3,6.531]
[1642716113443,5.266e-05,3073.9,3073.4,1.22704093]
[1642716113639,5.266e-05,3073.9,3072.9,0.5]
[1642716113640,9.867e-05,3074.7,3073.5,0.381]
[1642716113842,81.065977,3073.8,3073.6,0.5]
[1642716114039,0.037215,3076.1,3073.8,4.41411165]
[1642716114040,0.01281595,3075.8,3073.8,4.41411165]
[1642716114241,0.037215,3076.1,3073.9,0.41708877]
[1642716114438,0.00852635,3076.0,3074.0,0.41442238]
[1642716114638,0.00852635,3076.0,3074.5,0.01281052]
[1642716114639,38.61419635,3076.0,3074.5,0.01281052]
[1642716114836,47.43964949,3075.9,3075.1,0.01219335]
[1642716115083,100.0,3075.9,3075.1,0.01219335]
[1642716115269,56.597525,3076.0,3075.3,0.03608877]
[1642716115470,0.09996521,3075.9,3075.2,0.00454738]
[1642716115671,156.597525,3075.9,3075.4,0.00341054]
[1642716115976,56.597525,3075.8,3075.3,0.381]
[1642716116171,56.597525,3075.8,3075.2,0.13819997]
[1642716116172,41.973461,3075.8,3075.4,0.381]
[1642716116374,41.56388396,3075.3,3075.2,0.13819997]
[1642716116569,0.13563771,3075.2,3074.9,0.381]
[1642716116771,0.01965073,3077.2,3074.9,0.381]
[1642716116772,143.120725,3075.6,3075.2,0.00113684]
[1642716116972,1.55671773,3077.4,3075.3,6.15]
[1642716117176,38.96775301,3075.4,3075.3,6.15]
[1642716117474,1.054e-05,3076.2,3075.4,18.181]
[1642716117775,0.0062632,3077.3,3076.1,0.01263358]
[1642716117980,0.0062632,3077.3,3076.2,0.381]
[1642716118173,1.55671773,3077.4,3076.8,1.0]
[1642716118174,0.00569478,3077.2,3076.8,1.0]
[1642716118373,0.00569478,3077.2,3076.9,0.381]
[1642716118575,1.55671773,3077.4,3076.9,0.381]
[1642716118576,0.00512635,3077.1,3077.0,0.381]
[1642716119013,1.34559896,3077.3,3076.1,0.39363358]
[1642716119211,0.0125955,3079.1,3076.1,0.39363358]
[1642716119212,0.50356403,3076.9,3076.1,0.01263358]
[1642716119413,1.23441295,3076.8,3076.2,1.581e-05]
[1642716119614,2.94404702,3076.7,3076.2,1.581e-05]
[1642716119813,2.94404702,3076.7,3073.8,4.41411165]
[1642716119814,0.11024944,3076.6,3075.7,5.793e-05]
[1642716120016,1.11052691,3076.0,3075.7,5.793e-05]
[1642716120223,1.11052691,3076.0,3073.8,4.41411165]
[1642716120224,6.15,3075.6,3073.8,4.41411165]
[1642716120421,6.15,3075.6,3073.8,1.165e-05]
[1642716120422,0.888786,3074.4,3073.8,1.165e-05]
[1642716120620,1.5961743,3075.4,3073.8,1.165e-05]
[1642716120621,0.16263,3074.7,3073.9,0.01023162]
[1642716120914,89.992167,3075.3,3073.9,0.01023162]
[1642716121121,0.3,3075.8,3073.9,0.01023162]
[1642716121122,21.70873,3074.6,3073.9,0.01023162]
[1642716121312,25.02868,3075.2,3073.9,0.01023162]
[1642716121511,1.3673574,3074.3,3073.9,0.01023162]
[1642716121712,1.02833377,3075.1,3073.9,0.01023162]
[1642716121713,0.94741176,3074.2,3073.9,3.162e-05]
[1642716121923,0.6,3074.2,3073.9,3.162e-05]
[1642716122119,0.6,3074.2,3073.8,1.165e-05]
[1642716122120,0.17695374,3074.0,3073.8,1.165e-05]
[1642716122315,6.45082997,3073.9,3073.8,1.165e-05]
[1642716122560,6.15,3073.8,3070.3,0.01200523]
[1642716122762,0.90367748,3070.9,3070.3,0.01200523]
[1642716123061,0.90367748,3070.9,3070.4,0.01989482]
[1642716123258,0.16263,3072.6,3070.4,0.01989482]
[1642716123458,3.75816702,3073.2,3070.4,0.01989482]
[1642716123459,0.16263,3072.8,3070.4,0.01989482]
[1642716123673,0.8143236,3072.3,3070.4,0.01989482]
[1642716123861,0.01231407,3071.9,3070.4,9.482e-05]
[1642716124065,0.01231407,3071.9,3069.0,0.01268777]
[1642716124066,0.14231812,3071.7,3069.0,0.01268777]
[1642716124267,0.14231812,3071.7,3067.5,0.5]
[1642716124268,1.07499135,3071.0,3068.2,1.01203472]
[1642716124472,3.48767702,3070.9,3069.1,61.0141045]
[1642716124668,3.48767702,3070.9,3068.2,1.01203472]
[1642716124669,6.15,3070.6,3068.3,74.650736]
[1642716124869,6.15,3070.6,3069.2,41.61189]
[1642716124870,0.814913,3070.0,3069.2,41.61189]
[1642716125168,0.00454738,3069.9,3068.6,0.01280916]
[1642716125368,0.00454738,3069.9,3069.3,47.42200162]
[1642716125667,7.896e-05,3069.8,3069.4,51.737176]
[1642716125872,3.5,3071.9,3069.7,0.01287994]
[1642716125873,0.98730744,3071.7,3069.7,0.01287994]
[1642716126070,3.5,3071.9,3071.0,0.01249402]
[1642716126071,1.52647444,3071.2,3071.0,0.01249402]
[1642716126346,0.01136847,3071.8,3071.0,0.01249402]
[1642716126535,0.113921,3072.8,3071.3,0.0123703]
[1642716126736,0.01080005,3071.7,3071.1,92.31978097]
[1642716126934,0.01080005,3071.7,3071.0,0.01249402]
[1642716126935,1.13872657,3072.6,3071.6,0.01295472]
[1642716127333,0.85004807,3074.2,3072.4,0.01203395]
[1642716127334,0.00284211,3074.2,3072.4,0.01203395]
[1642716127536,0.00284211,3074.2,3072.5,0.01259002]
[1642716127837,0.00227369,3074.1,3073.2,0.0128532]
[1642716128036,0.101314,3074.6,3073.9,1.0]
[1642716128242,0.0008,3076.1,3074.1,6.15]
[1642716128439,0.00227369,3074.5,3074.1,6.15]
[1642716128638,9.6e-05,3075.4,3074.4,0.01245244]
[1642716128840,0.102496,3075.4,3074.5,0.381]
[1642716129037,0.00852635,3076.0,3075.4,6.15]
[1642716129237,0.00852635,3076.0,3075.5,0.381]
[1642716129436,0.0008,3076.1,3075.5,6.86218]
[1642716129437,0.00795793,3075.9,3075.5,6.86218]
[1642716129636,0.00795793,3075.9,3075.5,0.381]
[1642716129840,0.50356403,3076.9,3075.6,6.15]
[1642716130059,0.50356403,3076.9,3076.2,0.01215064]
[1642716130265,0.50356403,3076.9,3076.3,0.381]
[1642716131065,0.50356403,3076.9,3076.4,17.392011]
[1642716131263,0.50356403,3076.9,3076.5,0.381]
[1642716131468,0.50356403,3076.9,3076.5,6.503002]
[1642716131663,0.50356403,3076.9,3076.5,4.013687]
[1642716131863,0.50356403,3076.9,3075.8,0.01441376]
[1642716131864,0.85885853,3076.8,3075.8,0.01441376]
[1642716132266,0.85885853,3076.8,3075.9,7.036047]
[1642716132267,0.00511581,3076.7,3075.9,7.036047]
[1642716132466,0.00511581,3076.7,3075.9,9.994196]
[1642716132664,0.00454738,3076.6,3075.9,9.984196]
[1642716132865,0.00454738,3076.6,3075.8,0.01441376]
[1642716133068,0.50356403,3076.9,3075.2,0.39396088]
[1642716133069,0.00397896,3076.5,3075.2,0.35951149]
[1642716133267,0.00397896,3076.5,3075.2,0.37215912]
[1642716133469,0.00454739,3076.4,3075.3,0.00170527]
[1642716133665,0.00454739,3076.4,3075.4,0.381]
[1642716133932,0.50356403,3076.9,3075.4,0.381]
[1642716133933,0.00397896,3076.3,3075.4,0.381]
[1642716134328,0.00341054,3076.2,3075.4,0.381]
[1642716134528,0.00341054,3076.2,3075.5,30.874527]
[1642716134731,0.50356403,3076.9,3075.7,6.15]
[1642716135035,1.01731467,3076.3,3076.1,0.01288321]
[1642716135233,0.00397896,3076.8,3076.1,0.01288321]
[1642716135234,1.21090026,3076.5,3076.2,0.381]
[1642716135435,0.00397896,3076.8,3075.8,0.00170527]
[1642716135633,0.4565383,3076.9,3075.9,3.75]
[1642716135831,0.4565383,3076.9,3075.5,0.00511581]
[1642716135832,0.00170527,3076.7,3075.5,0.00511581]
[1642716136136,0.4565383,3076.9,3075.8,0.01278384]
[1642716136137,0.00113684,3076.6,3075.8,0.01278384]
[1642716136335,0.00113684,3076.6,3075.9,0.39560686]
[1642716136535,0.47279675,3076.9,3075.9,0.39560686]
[1642716136536,0.42393359,3076.9,3076.5,0.01284714]
[1642716136741,0.42393359,3076.9,3076.6,0.381]
[1642716136935,1.42111575,3078.1,3076.6,0.381]
[1642716137141,0.16263,3080.7,3077.2,0.01223423]
[1642716137338,0.9258629,3081.0,3077.3,0.381]
[1642716137339,1.581e-05,3077.7,3077.3,0.381]
[1642716137565,2.09330053,3080.1,3077.7,6.1]
[1642716137760,2.09330053,3080.1,3077.8,0.381]
[1642716137761,1.2449,3080.1,3077.8,0.381]
[1642716137963,1.2081458,3079.9,3078.3,0.01264956]
[1642716138161,0.01307374,3080.0,3078.4,0.381]
[1642716138162,0.91828262,3079.8,3078.4,0.381]
[1642716138361,0.0119369,3079.8,3078.4,0.381]
[1642716138561,1.2449,3080.1,3078.4,0.381]
[1642716138562,0.01136847,3079.7,3078.4,0.381]
[1642716138964,1.2449,3080.1,3078.4,0.381]
[1642716138965,0.01080005,3079.6,3078.4,0.381]
[1642716139164,0.01080005,3079.6,3077.7,6.1]
[1642716139165,1.0957417,3077.9,3077.7,6.1]
[1642716139369,2.25764233,3077.9,3077.6,0.381]
[1642716139566,2.25764233,3077.9,3077.4,0.00170527]
[1642716139567,2.10764233,3077.9,3077.4,0.00170527]
[1642716140067,2.10764233,3077.9,3076.6,0.00625266]
[1642716140263,0.01222344,3078.3,3076.6,0.00625266]
[1642716140264,2.27126346,3077.3,3076.6,0.00625266]
[1642716140465,0.0008,3076.7,3076.6,0.00625266]
[1642716140663,0.0008,3076.7,3076.6,6.10625266]
[1642716140864,0.0008,3076.7,3076.6,6.09625266]
[1642716141081,0.00738951,3079.0,3076.7,6.1008]
[1642716141314,0.00738951,3079.0,3078.3,0.01016207]
[1642716141509,2.94404702,3080.0,3078.3,0.01016207]
[1642716141510,0.01307374,3078.9,3078.3,0.01016207]
[1642716141709,1.16855948,3078.4,3078.3,0.01016207]
[1642716141915,2.94404702,3080.0,3078.3,0.01016207]
[1642716141916,0.01250532,3078.8,3078.3,0.01016207]
[1642716142108,0.01023163,3078.4,3078.3,0.01016207]
[1642716142309,0.0119369,3078.7,3078.3,0.01016207]
[1642716142515,0.01023163,3078.4,3078.3,0.01016207]
[1642716142716,0.01136847,3078.6,3078.3,0.01016207]
[1642716142911,0.01023163,3078.4,3078.3,0.01016207]
[1642716143109,0.01080005,3078.5,3078.3,1.01016207]
[1642716143311,0.01023163,3078.4,3078.3,0.01016207]
[1642716143516,1.75271343,3081.3,3078.3,0.39116207]
[1642716143716,1.5749712,3082.1,3078.3,0.39116207]
[1642716143717,0.01271917,3081.8,3079.1,0.01275829]
[1642716143911,0.00514743,3081.1,3079.2,0.51919997]
[1642716144114,1.35099844,3080.9,3079.2,1.02485259]
[1642716144317,1.25099844,3080.9,3079.3,0.00508419]
[1642716144518,1.25099844,3080.9,3079.4,0.381]
[1642716144519,0.00344216,3080.8,3079.4,0.381]
[1642716144912,0.00287374,3080.7,3079.5,0.00394734]
[1642716145357,0.13819997,3081.4,3079.5,0.00394734]
[1642716145358,0.14522276,3080.5,3079.5,0.00394734]
[1642716145557,0.00230531,3080.6,3079.5,0.00394734]
[1642716145758,0.13819997,3081.4,3079.5,0.00394734]
[1642716145759,1.24357498,3079.6,3079.5,0.00394734]
[1642716146158,1.24357498,3079.6,3079.3,0.00508419]
[1642716146358,1.24357498,3079.6,3078.1,0.01256076]
[1642716146359,0.1458703,3079.5,3078.6,0.00906316]
[1642716146560,1.31587098,3079.1,3078.4,0.0102]
[1642716146766,0.01274513,3080.4,3078.2,0.01133685]
[1642716147367,0.09171435,3080.3,3077.8,0.01361054]
[1642716147569,0.94123098,3078.2,3077.8,0.01361054]
[1642716147769,1.5408708,3078.1,3077.7,0.01417897]
[1642716147971,0.01228867,3079.3,3077.7,0.01417897]
[1642716148168,0.85300276,3080.1,3077.7,0.01417897]
[1642716148169,2.94404702,3080.1,3077.7,0.01417897]
[1642716148370,0.16263,3080.5,3077.7,0.01417897]
[1642716148371,1.30368086,3081.7,3078.0,0.05]
[1642716148574,2.94404702,3081.0,3078.1,0.381]
[1642716148834,1.33536291,3080.0,3078.7,0.01278016]
[1642716149036,1.03395161,3079.8,3078.7,0.01278016]
[1642716149235,0.00401058,3080.9,3078.8,0.00792631]
[1642716149434,0.00401058,3080.9,3078.9,0.39325388]
[1642716149640,0.00344216,3080.8,3079.0,1.0]
[1642716149840,0.00344216,3080.8,3079.4,0.0129775]
[1642716150037,0.00287374,3080.7,3079.7,1.0]
[1642716150336,0.00230531,3080.6,3079.8,0.38324207]
[1642716150536,0.00230531,3080.6,3079.8,0.00224207]
[1642716150537,0.05926391,3080.2,3079.8,0.00224207]
[1642716150738,0.05926391,3080.2,3079.9,0.00167365]
[1642716150739,1.2275439,3080.2,3079.9,0.00167365]
[1642716150937,1.2275439,3080.2,3079.5,0.00394734]
[1642716151238,1.4979794,3079.7,3078.6,0.00906316]
[1642716151436,0.56073582,3080.3,3079.6,0.01455878]
[1642716151437,2.94404702,3080.2,3079.6,0.01455878]
[1642716151639,1.10744534,3080.1,3079.6,0.01455878]
[1642716151940,0.01408071,3080.5,3079.6,0.01455878]
[1642716152137,0.00173689,3080.5,3079.7,0.06120607]
[1642716152346,0.00116847,3080.4,3079.7,0.06120607]
[1642716152571,0.00116847,3080.4,3079.8,0.00224207]
[1642716152770,0.00628428,3081.3,3079.9,0.02365867]
[1642716152970,1.15157524,3080.4,3079.8,0.00224207]
[1642716153171,0.00571585,3081.2,3080.0,0.00110523]
[1642716153370,0.00571585,3081.2,3079.7,0.0028105]
[1642716153574,0.00628428,3081.3,3079.7,1.0028105]
[1642716153772,0.00628428,3081.3,3079.8,0.07716977]
[1642716153970,0.13819997,3081.4,3079.9,0.381]
[1642716153971,0.00571585,3081.2,3079.9,0.381]
[1642716154274,0.00441687,3082.0,3080.6,0.01250625]
[1642716154475,0.00210551,3082.0,3080.8,6.1]
[1642716154674,0.0022737,3081.6,3081.3,0.01291262]
[1642716154877,0.0022737,3081.6,3081.4,0.10926391]
[1642716155070,0.05,3082.2,3081.2,0.381]
[1642716155071,0.00170527,3081.5,3081.2,0.381]
[1642716155274,1.46034853,3081.4,3081.2,0.381]
[1642716155473,0.00113685,3081.4,3081.2,0.381]
[1642716155872,0.00113685,3081.4,3080.9,0.00170527]
[1642716156072,1.07209197,3081.2,3080.9,0.00170527]
[1642716156508,1.26886152,3081.0,3080.9,0.00170527]
[1642716156711,1.16886152,3081.0,3080.3,0.00511581]
[1642716156908,1.07209197,3081.2,3079.8,0.00795792]
[1642716156909,1.18580164,3080.4,3079.8,0.00795792]
[1642716157113,0.93580164,3080.4,3079.7,0.00852635]
[1642716157316,0.93580164,3080.4,3079.4,0.01023162]
[1642716157522,0.93580164,3080.4,3079.5,0.02131911]
[1642716157716,0.93580164,3080.4,3079.4,0.03293882]
[1642716157914,0.00113685,3081.4,3079.6,0.00909477]
[1642716158115,0.00113685,3081.4,3079.7,0.01229751]
[1642716158521,6.461e-05,3080.3,3079.8,0.00795792]
[1642716158720,0.00113685,3081.4,3079.9,0.381]
[1642716158918,0.00113685,3081.4,3080.0,0.07303558]
[1642716159118,0.00113685,3081.4,3080.0,0.00682108]
[1642716159318,0.00113685,3081.4,3080.1,0.00625265]
[1642716159518,0.00113685,3081.4,3079.8,0.00795792]
[1642716159720,1.04849772,3080.4,3079.8,0.00795792]
[1642716159917,1.23018949,3079.9,3079.8,0.00795792]
[1642716160575,3.93018949,3079.9,3079.2,0.01136847]
[1642716160778,0.85597106,3079.8,3079.2,0.01136847]
[1642716160974,1.47009457,3078.7,3078.3,0.01648428]
[1642716161175,0.85597106,3079.8,3078.3,0.01648428]
[1642716161579,2.94404702,3080.9,3078.9,0.01214253]
[1642716161782,1.52644806,3081.9,3079.6,0.01291227]
[1642716161977,4.47492674,3081.9,3079.6,0.01291227]
[1642716162182,4.47492674,3081.9,3079.7,0.0096632]
[1642716162183,1.1784165,3080.0,3079.7,0.0096632]
[1642716162380,2.94404702,3081.1,3079.7,0.0096632]
[1642716162577,0.8116062,3081.2,3079.7,0.0096632]
[1642716162578,0.91898285,3079.9,3079.8,0.04241565]
[1642716162785,1.6232264,3081.4,3079.1,0.01307374]
[1642716162984,1.52610805,3082.1,3080.2,0.01263484]
[1642716163184,1.52610805,3082.1,3080.3,0.11176076]
[1642716163381,0.00113684,3081.8,3080.3,0.11915027]
[1642716163577,0.00113684,3081.8,3080.4,1.38782108]
[1642716163821,0.00113684,3081.8,3080.6,0.81109]
[1642716164008,0.00113684,3081.8,3080.7,0.51919997]
[1642716164211,2.87163,3083.9,3080.7,0.51919997]
[1642716164212,0.05552,3084.1,3081.7,0.12668116]
[1642716164413,0.0044307,3083.8,3083.1,0.11426391]
[1642716164615,1.41553378,3084.3,3083.0,0.01236186]
[1642716165017,0.01477901,3084.4,3083.2,1.0]
[1642716165214,0.01477901,3084.4,3083.2,0.13819997]
[1642716165417,2.5463492,3084.5,3083.2,0.13819997]
[1642716165418,0.01421059,3084.3,3083.2,0.13819997]
[1642716165710,0.01364217,3084.2,3083.2,0.13819997]
[1642716166012,2.5463492,3084.5,3082.6,0.13819997]
[1642716166013,0.01307374,3084.1,3082.6,0.13819997]
[1642716166411,0.01250532,3084.0,3083.2,0.01163744]
[1642716166811,0.0119369,3083.9,3083.2,0.01163744]
[1642716167012,2.5463492,3084.5,3083.3,2.9]
[1642716167013,2.5082861,3084.5,3083.3,2.9]
[1642716167213,2.5082861,3084.5,3083.4,0.04480998]
[1642716167415,2.33424873,3084.4,3083.4,0.00284212]
[1642716167663,0.87479546,3084.4,3083.4,3.5]
[1642716167865,0.87479546,3084.4,3083.4,7.10234466]
[1642716167866,0.00227369,3084.3,3083.4,7.10234466]
[1642716168072,2.5082861,3084.5,3083.6,6.1]
[1642716168073,2.46055979,3084.5,3083.6,6.1]
[1642716168263,2.46055979,3084.5,3083.7,0.04585785]
[1642716168463,2.46055979,3084.5,3083.7,0.00341054]
[1642716168666,2.46055979,3084.5,3083.8,0.38384212]
[1642716168866,3.0412,3086.7,3084.1,0.08967332]
[1642716169069,1.196,3087.1,3084.0,0.01262914]
[1642716169070,1.16607326,3086.2,3084.3,0.03225367]
[1642716169273,1.1492,3086.4,3084.5,0.06875744]
[1642716169274,0.01023162,3086.1,3084.5,0.06875744]
[1642716169471,1.05943162,3086.4,3084.9,6.1]
[1642716169669,10.5585,3088.3,3085.2,1.0]
[1642716169670,1.21764746,3087.0,3085.2,1.0]
[1642716169872,0.00113685,3086.3,3085.5,0.01292726]
[1642716170070,2.94404702,3088.2,3086.2,0.0123483]
[1642716170271,1.0786603,3088.2,3086.3,0.44795772]
[1642716170475,0.0533576,3089.7,3086.3,0.381]
[1642716170476,0.00227369,3086.7,3086.3,0.381]
[1642716170677,0.01232602,3089.3,3086.6,0.11426391]
[1642716170879,0.01364216,3088.7,3086.9,0.01291654]
[1642716171072,0.8627019,3089.7,3086.9,0.01291654]
[1642716171073,0.0533576,3089.7,3087.3,0.5]
[1642716171326,0.0533576,3089.7,3087.8,0.09868441]
[1642716171527,0.0533576,3089.7,3088.2,1.0]
[1642716171528,0.00284212,3089.6,3088.2,1.0]
[1642716171831,5.169,3091.9,3088.2,1.0]
[1642716171832,4.03643973,3091.4,3089.1,0.01222503]
[1642716172029,0.00442577,3091.4,3089.8,0.80864]
[1642716172228,2.55835525,3092.0,3089.8,0.80864]
[1642716172229,1.47838175,3091.5,3089.9,0.73066703]
[1642716172430,1.47838175,3091.5,3090.6,0.09836101]
[1642716172634,0.01031338,3091.5,3090.8,1.0]
[1642716172829,0.01201502,3093.2,3091.2,6.1]
[1642716172830,1.63e-05,3092.1,3091.2,6.1]
[1642716173033,1.63e-05,3092.1,3091.9,0.01237758]
[1642716173233,0.00357785,3091.8,3091.4,0.11426391]
[1642716173430,1.1887,3094.1,3091.3,0.00397898]
[1642716173431,0.16263,3096.3,3091.6,0.11426391]
[1642716173630,1.27081924,3096.9,3092.6,6.21426391]
[1642716173631,0.00442339,3095.1,3092.6,6.21426391]
[1642716173831,5.47712,3096.9,3092.8,0.06120399]
[1642716173832,0.00625265,3093.1,3092.8,0.06120399]
[1642716174031,5.47712,3096.9,3092.8,0.06120399]
[1642716174032,0.0124603,3095.3,3093.0,0.09528128]
[1642716174234,0.00221094,3096.1,3093.7,0.06621641]
[1642716174435,0.33256728,3095.5,3093.8,0.381]
[1642716174731,0.16263,3097.1,3093.8,0.381]
[1642716174732,0.01528468,3095.4,3093.9,0.05391486]
[1642716174931,0.01528468,3095.4,3094.0,0.381]
[1642716174932,0.01307374,3095.4,3094.0,0.381]
[1642716175173,0.01250531,3095.3,3094.1,0.07362172]
[1642716175380,0.01250531,3095.3,3093.2,7.71577806]
[1642716175579,0.01203468,3095.6,3093.4,0.80761]
[1642716175580,0.01193689,3095.2,3093.4,0.80761]
[1642716175782,0.00221094,3096.1,3093.9,0.01248035]
[1642716175979,0.00221094,3096.1,3094.4,1.61416]
[1642716176179,0.00170527,3095.5,3094.2,0.03039739]
[1642716176378,0.00170527,3095.5,3094.5,0.00397897]
[1642716176379,0.0142649,3095.5,3094.5,0.00397897]
[1642716176678,0.00113685,3095.4,3094.4,0.00454739]
[1642716176881,3.685e-05,3095.4,3094.6,0.012736]
[1642716177080,1.23651785,3095.4,3094.5,0.845]
[1642716177284,1.23651785,3095.4,3094.7,0.38494212]
[1642716177285,1.51707322,3094.9,3094.7,0.38494212]
[1642716177479,1.51707322,3094.9,3094.6,0.00451054]
[1642716177679,1.51707322,3094.9,3094.2,0.03039739]
[1642716177881,2.94625796,3096.1,3092.3,0.381]
[1642716177882,1.02926198,3092.8,3092.3,0.381]
[1642716178082,0.01204258,3094.3,3091.9,0.381]
[1642716178285,0.01204258,3094.3,3092.7,25.233859]
[1642716178482,0.00221094,3094.3,3092.9,0.01272602]
[1642716178681,2.9646542,3096.0,3093.1,6.1]
[1642716178927,0.00221112,3094.3,3093.7,0.09068616]
[1642716179126,0.01229738,3095.1,3093.2,0.381]
[1642716179127,0.84777776,3094.2,3093.2,0.00795793]
[1642716179324,0.00221112,3094.3,3093.8,0.00454739]
[1642716179527,0.00221112,3094.3,3092.3,2.94404702]
[1642716179528,0.00221112,3094.1,3093.3,0.381]
[1642716179727,0.01282433,3095.4,3093.5,6.1]
[1642716179926,0.01282433,3095.4,3093.6,0.48255195]
[1642716179927,0.113921,3094.2,3093.6,0.48255195]
[1642716180127,1.50289596,3093.8,3093.6,0.00341054]
[1642716180330,1.50289596,3093.8,3091.2,0.5]
[1642716180331,0.00200125,3093.5,3092.0,0.01257748]
[1642716180529,0.00200125,3093.5,3092.2,0.381]
[1642716180530,1.25211818,3093.1,3092.2,0.381]
[1642716180729,0.113921,3093.3,3091.9,3.5]
[1642716180937,0.00200125,3093.5,3092.3,6.84246293]
[1642716181128,0.00200125,3093.5,3092.3,0.00795793]
[1642716181328,0.00200125,3093.5,3092.4,0.00738951]